bitfinex/quotes_ETHUSD_20250916
["timestamp","ask_amount","ask_price","bid_price","bid_amount"]
[1758018404076,11.07491465,4518.2,4518.1,2e-08]
[1758018404277,11.53011465,4518.2,4518.1,2e-08]
[1758018404479,15.81324286,4518.2,4518.1,2e-08]
[1758018404778,15.21507876,4518.2,4518.1,2e-08]
[1758018404955,15.2155526,4518.2,4518.1,2e-08]
[1758018406292,14.7559526,4518.2,4518.1,2e-08]
[1758018406595,9.49654594,4517.9,4517.8,0.001]
[1758018406795,14.1998775,4517.9,4517.8,0.001]
[1758018408387,14.28862056,4517.9,4517.8,0.001]
[1758018409866,14.40102265,4517.9,4517.8,0.001]
[1758018410465,10.71502265,4517.9,4517.8,0.001]
[1758018410666,14.40102265,4517.9,4517.8,0.001]
[1758018411194,10.71502265,4517.9,4517.8,0.001]
[1758018411485,14.40102265,4517.9,4517.8,1.2669]
[1758018411864,14.40102265,4517.9,4517.8,0.001]
[1758018412064,14.50002265,4517.9,4517.8,0.001]
[1758018412265,14.50000136,4517.9,4517.8,0.001]
[1758018413293,14.49999826,4517.9,4517.8,0.001]
[1758018413707,14.40096951,4517.9,4517.8,0.0018]
[1758018413891,10.60256742,4517.9,4517.8,0.3155]
[1758018414094,10.60256742,4517.9,4517.8,1.2677]
[1758018414459,14.28879711,4517.9,4517.8,1.2677]
[1758018414660,14.28880253,4517.9,4517.8,1.2677]
[1758018415787,14.28880366,4517.9,4517.8,1.2677]
[1758018416456,14.28800366,4517.9,4517.8,1.2677]
[1758018416654,14.28800366,4517.9,4517.8,1.03449223]
[1758018417285,14.28800366,4517.9,4517.8,0.08229223]
[1758018417527,14.28800366,4517.9,4517.8,0.56929223]
[1758018417818,14.28800366,4517.9,4517.8,1.02419223]
[1758018418314,14.08031769,4517.9,4517.8,1.02419223]
[1758018418513,14.2878322,4517.9,4517.8,0.08229223]
[1758018418724,5.32386673,4517.8,4517.7,0.001]
[1758018418915,6.34120993,4517.8,4517.7,0.001]
[1758018419213,6.64360993,4517.8,4517.7,0.001]
[1758018420196,6.34120993,4517.8,4517.7,0.001]
[1758018420596,6.42994787,4517.8,4517.7,0.2864]
[1758018420809,6.42994787,4517.8,4517.7,0.7734]
[1758018421321,6.42994787,4517.8,4517.7,0.2864]
[1758018422523,6.42994787,4517.8,4517.7,0.001]
[1758018423089,6.42994787,4517.8,4517.7,0.2864]
[1758018423289,6.42994787,4517.8,4517.7,1.2283]
[1758018423489,6.42994787,4517.8,4517.7,0.7734]
[1758018423691,6.4299342,4517.8,4517.7,0.2864]
[1758018423987,6.4299342,4517.8,4517.7,0.0018]
[1758018424752,6.42993616,4517.8,4517.7,0.0018]
[1758018425646,6.42993616,4517.8,4517.7,0.7742]
[1758018426238,6.4299715,4517.8,4517.7,0.7742]
[1758018426547,6.4299715,4517.8,4517.7,1.2291]
[1758018426916,10.1159715,4517.8,4517.7,0.7742]
[1758018427118,10.1159715,4517.8,4517.7,1.2291]
[1758018428724,10.1159715,4517.8,4517.7,0.7742]
[1758018429035,10.4183715,4517.8,4517.7,0.0018]
[1758018430937,10.1159715,4517.8,4517.7,0.0018]
[1758018431339,2.21356472,4517.6,4517.5,0.25643978]
[1758018431527,7.22583401,4517.6,4517.5,0.4549]
[1758018431727,7.70336683,4517.6,4517.5,0.7403]
[1758018432124,9.91693155,4517.6,4517.5,0.7403]
[1758018432530,10.58246754,4517.6,4517.5,0.7403]
[1758018432735,10.58272046,4517.6,4517.5,0.7403]
[1758018433459,10.58272946,4517.6,4517.5,1.2273]
[1758018433959,8.36916474,4517.6,4517.5,1.2273]
[1758018434124,8.36916474,4517.6,4517.5,1.2281]
[1758018434555,10.58272946,4517.6,4517.5,1.2281]
[1758018435459,8.36916474,4517.6,4517.5,1.2281]
[1758018436547,10.58272946,4517.6,4517.5,1.2281]
[1758018438830,10.58172946,4517.6,4517.5,1.2281]
[1758018441334,10.58172946,4517.6,4517.5,0.7742]
[1758018441646,10.58372946,4517.6,4517.5,0.7742]
[1758018441843,10.58292946,4517.6,4517.5,0.7742]
[1758018442649,10.58292946,4517.6,4517.5,0.2872]
[1758018443065,10.58292946,4517.6,4517.5,0.0018]
[1758018443441,10.58292946,4517.6,4517.5,0.2908]
[1758018443640,10.58292946,4517.6,4517.5,0.7879]
[1758018444175,10.58292946,4517.6,4517.5,1.2504]
[1758018444480,4.56058499,4517.6,4517.5,1.01681984]
[1758018444655,7.10251618,4517.6,4517.5,1.01761984]
[1758018444974,3.895049,4517.6,4517.5,1.01761984]
[1758018446055,5.6310809,4517.6,4517.5,1.01761984]
[1758018446258,6.10981775,4517.6,4517.5,1.01761984]
[1758018446659,6.10981775,4517.6,4517.5,0.05801984]
[1758018446935,6.40351775,4517.6,4517.5,0.0008]
[1758018447340,7.40425667,4517.6,4517.5,0.0008]
[1758018449405,6.49225667,4517.6,4517.5,0.0008]
[1758018449751,6.19855667,4517.6,4517.5,0.0008]
[1758018453756,6.32323412,4517.6,4517.5,0.0008]
[1758018454360,10.00823412,4517.6,4517.5,0.0008]
[1758018455230,10.30193412,4517.6,4517.5,0.0008]
[1758018456612,7.66999195,4517.6,4517.5,0.2898]
[1758018456804,3.98499195,4517.6,4517.5,0.7869]
[1758018457106,7.1912551,4517.6,4517.5,1.2494]
[1758018457307,9.67580308,4517.6,4517.5,1.2494]
[1758018457507,6.98350151,4517.6,4517.5,1.2494]
[1758018457813,9.46804755,4517.6,4517.5,1.2494]
[1758018458942,5.78304755,4517.6,4517.5,0.2898]
[1758018459240,9.46804755,4517.6,4517.5,1.2494]
[1758018459401,9.46804755,4517.6,4517.3,0.4981]
[1758018459608,2.32326272,4517.4,4517.3,0.001]
[1758018460130,6.09570663,4517.4,4517.3,0.001]
[1758018460309,7.00770663,4517.4,4517.3,0.001]
[1758018460509,7.09644752,4517.4,4517.3,0.001]
[1758018460706,6.18444752,4517.4,4517.3,0.001]
[1758018461008,7.09644752,4517.4,4517.3,0.001]
[1758018461538,5.89074752,4517.4,4517.3,0.29]
[1758018461718,9.57574752,4517.4,4517.3,0.7871]
[1758018461911,9.57574752,4517.4,4517.3,0.29]
[1758018462111,9.99135584,4517.4,4517.3,0.7871]
[1758018463046,9.99135584,4517.4,4517.3,0.29]
[1758018463214,6.30635584,4517.4,4517.3,0.001]
[1758018463414,9.99135584,4517.4,4517.3,0.001]
[1758018463922,9.99135584,4517.4,4517.3,0.4981]
[1758018464456,9.99131814,4517.4,4517.3,0.4981]
[1758018464607,6.30631814,4517.4,4517.3,0.7871]
[1758018464810,9.99131814,4517.4,4517.3,0.001]
[1758018465317,9.57574752,4517.4,4517.3,0.001]
[1758018465522,9.9912685,4517.4,4517.3,0.001]
[1758018467159,9.9904685,4517.4,4517.3,0.001]
[1758018467349,7.29806187,4517.4,4517.3,0.7871]
[1758018467561,9.51172459,4517.4,4517.3,0.7871]
[1758018469438,9.51172459,4517.4,4517.3,0.29]
[1758018469955,9.51172459,4517.4,4517.3,0.2908]
[1758018471054,9.51172459,4517.4,4517.3,0.0018]
[1758018472952,9.82662459,4517.4,4517.3,0.0018]
[1758018473660,10.77402459,4517.4,4517.3,0.0018]
[1758018474366,9.82662459,4517.4,4517.3,0.0018]
[1758018474680,10.77402459,4517.4,4517.3,0.0018]
[1758018474979,11.25267229,4517.4,4517.3,0.0018]
[1758018475971,10.30527229,4517.4,4517.3,0.0018]
[1758018476169,11.25267229,4517.4,4517.3,0.0018]
[1758018478046,10.30527229,4517.4,4517.3,0.0018]
[1758018478290,10.30727229,4517.4,4517.3,0.0018]
[1758018479489,10.30728675,4517.4,4517.3,0.0018]
[1758018479642,10.86305071,4517.4,4517.3,0.0018]
[1758018479841,11.33295071,4517.4,4517.3,0.0018]
[1758018481076,11.70277636,4517.4,4517.3,0.0018]
[1758018481682,16.84317637,4517.4,4517.3,0.0018]
[1758018481889,17.72197709,4517.4,4517.3,0.0018]
[1758018482043,2.21390776,4516.9,4516.8,2e-08]
[1758018482244,6.91595486,4516.9,4516.8,2e-08]
[1758018482480,8.49998051,4516.9,4516.8,2e-08]
[1758018482748,8.21891446,4516.9,4516.8,2e-08]
[1758018485393,16.7006851,4516.9,4516.8,2e-08]
[1758018486761,11.21891446,4516.9,4516.8,2e-08]
[1758018486967,11.21864924,4516.9,4516.8,2e-08]
[1758018487384,11.0942505,4516.9,4516.8,2e-08]
[1758018489782,10.88649001,4516.9,4516.8,2e-08]
[1758018490086,11.09377107,4516.9,4516.8,2e-08]
[1758018492190,11.09297107,4516.9,4516.8,2e-08]
[1758018492393,11.09297107,4516.9,4516.8,0.00080002]
[1758018492687,11.09245437,4516.9,4516.8,0.00080002]
[1758018493552,10.62255437,4516.9,4516.8,0.00080002]
[1758018493757,9.87825437,4516.9,4516.8,0.00080002]
[1758018493958,9.87825437,4516.9,4516.8,0.49640002]
[1758018494302,9.87825437,4516.9,4516.8,1.25000002]
[1758018494601,9.39959221,4516.9,4516.8,1.25000002]
[1758018495211,9.39959221,4516.9,4516.8,0.54886892]
[1758018496669,9.39959221,4516.9,4516.8,0.54986892]
[1758018497020,9.19231115,4516.9,4516.8,0.54986892]
[1758018497170,9.19231115,4516.9,4516.8,1.01786892]
[1758018497677,9.19231115,4516.9,4516.8,0.54986892]
[1758018498303,5.50831115,4516.9,4516.8,0.54986892]
[1758018498469,5.50831115,4516.9,4516.8,1.01786892]
[1758018498470,9.19231115,4516.9,4516.8,1.01786892]
[1758018498670,9.19231115,4516.9,4516.8,0.54986892]
[1758018499293,6.98000339,4516.9,4516.8,0.54986892]
[1758018499490,3.29600339,4516.9,4516.8,1.01786892]
[1758018499699,3.1991596,4516.9,4516.8,1.34136552]
[1758018499896,3.0887596,4516.9,4516.8,1.01786892]
[1758018500211,3.0887596,4516.9,4516.8,3.2318257]
[1758018503126,3.0887596,4516.9,4516.8,3.2326257]
[1758018504592,0.0887596,4516.9,4516.8,3.2326257]
[1758018504805,0.0887596,4516.9,4516.8,3.3430257]
[1758018505116,0.002,4517.4,4516.8,3.90124608]
[1758018505306,0.002,4517.4,4517.0,2.21385875]
[1758018505624,0.66748433,4517.4,4517.1,2.21378453]
[1758018505925,0.66748433,4517.4,4517.3,0.3118]
[1758018506529,0.66748433,4517.4,4517.3,0.7631]
[1758018506882,0.66748433,4517.4,4517.3,1.2043]
[1758018507229,0.66748433,4517.4,4517.3,1.54610757]
[1758018509323,0.66748433,4517.4,4517.3,1.10490757]
[1758018509524,0.66748433,4517.4,4517.3,0.7631]
[1758018510696,0.97938433,4517.4,4516.8,2.8843637]
[1758018510902,0.97938433,4517.4,4516.9,0.4513]
[1758018511083,0.97938433,4517.4,4516.9,0.8925]
[1758018511420,0.97938433,4517.4,4517.0,0.4513]
[1758018511596,0.97938433,4517.4,4517.0,1.19738637]
[1758018511792,0.97938433,4517.4,4517.0,0.74608637]
[1758018512115,0.4534,4517.3,4516.8,0.67042038]
[1758018512331,0.4534,4517.2,4516.8,0.56002038]
[1758018512536,1.60242714,4517.2,4516.8,1.01132038]
[1758018512826,0.4534,4517.1,4516.8,1.01132038]
[1758018513184,1.11892714,4517.1,4516.8,1.01132038]
[1758018513510,0.66552714,4517.1,4516.9,0.4513]
[1758018513816,0.66552714,4517.1,4516.9,0.4521]
[1758018514016,0.66552714,4517.1,4517.0,0.4513]
[1758018515829,0.66552714,4517.1,4516.9,0.0008]
[1758018515830,1.43082714,4517.1,4516.9,0.0008]
[1758018516926,7.29146069,4517.0,4516.9,0.0008]
[1758018517125,10.77496069,4517.0,4516.9,0.0008]
[1758018517420,11.50059667,4517.0,4516.9,0.0008]
[1758018517623,11.15944552,4517.0,4516.9,0.0008]
[1758018517785,11.24819625,4517.0,4516.9,0.0008]
[1758018517985,14.93119625,4517.0,4516.9,0.0008]
[1758018518790,14.93122395,4517.0,4516.9,0.0008]
[1758018519188,15.27136739,4517.0,4516.9,0.0008]
[1758018519418,14.93122395,4517.0,4516.9,0.0008]
[1758018520487,15.27136739,4517.0,4516.9,0.0008]
[1758018521329,14.93122395,4517.0,4516.9,0.0008]
[1758018521828,15.27136739,4517.0,4516.9,0.0008]
[1758018522194,15.06407877,4517.0,4516.9,0.0008]
[1758018522523,14.85680371,4517.0,4516.9,0.0008]
[1758018523536,15.06415143,4517.0,4516.9,0.0008]
[1758018524237,14.85680371,4517.0,4516.9,0.0008]
[1758018525728,7.53625073,4517.0,4516.9,0.0008]
[1758018526044,6.77175073,4517.0,4516.9,0.4521]
[1758018526238,6.97912614,4517.0,4516.9,0.4521]
[1758018526425,9.19298489,4517.0,4516.9,0.4521]
[1758018526741,8.98560948,4517.0,4516.9,0.4521]
[1758018527109,9.40039744,4517.0,4516.9,0.0008]
[1758018527322,5.51000346,4517.0,4516.9,0.0008]
[1758018527540,9.40043572,4517.0,4516.9,0.0008]
[1758018528438,7.18657697,4517.0,4516.9,0.3126]
[1758018528636,6.97916385,4517.0,4516.9,0.3126]
[1758018528837,6.97916385,4517.0,4516.9,0.7639]
[1758018529705,9.1930226,4517.0,4516.9,0.7639]
[1758018530567,5.5100226,4517.0,4516.9,0.7639]
[1758018530866,3.29616385,4517.0,4516.9,0.7639]
[1758018531241,3.29816385,4517.0,4516.9,0.7639]
[1758018531443,5.5120226,4517.0,4516.9,0.7639]
[1758018532469,5.5120226,4517.0,4516.9,0.4521]
[1758018532763,5.51204961,4517.0,4516.9,0.4521]
[1758018538685,5.51204961,4517.0,4516.9,0.0008]
[1758018539566,3.29819086,4517.0,4516.9,0.0008]
[1758018539748,3.29819086,4517.0,4516.9,0.3095]
[1758018540073,3.40859086,4517.0,4516.9,0.7927]
[1758018541439,5.62244961,4517.0,4516.9,0.484]
[1758018542043,5.91924961,4517.0,4516.9,0.0008]
[1758018542282,6.93981631,4517.0,4516.9,0.0008]
[1758018542581,7.85251827,4517.0,4516.9,0.0008]
[1758018547452,7.54186649,4517.0,4516.9,0.0008]
[1758018547991,7.54234663,4517.0,4516.9,0.0008]
[1758018549406,7.54232257,4517.0,4516.9,0.0008]
[1758018552171,7.54230346,4517.0,4516.9,0.0008]
[1758018553002,7.542257,4517.0,4516.9,0.0008]
[1758018553210,11.224257,4517.0,4516.9,0.0008]
[1758018553377,6.322057,4517.0,4516.9,0.0008]
[1758018553578,10.004057,4517.0,4516.9,0.484]
[1758018553772,10.004057,4517.0,4516.9,0.0008]
[1758018553773,10.300857,4517.0,4516.9,0.0008]
[1758018554684,7.062857,4517.0,4516.9,0.0008]
[1758018554891,11.224257,4517.0,4516.9,0.0008]
[1758018555586,11.22422973,4517.0,4516.9,0.0008]
[1758018557309,7.54223151,4517.0,4516.9,0.0008]
[1758018557485,11.22423151,4517.0,4516.9,0.0008]
[1758018559112,10.30083151,4517.0,4516.9,0.0008]
[1758018559609,10.30081944,4517.0,4516.9,0.0008]
[1758018560812,6.61881944,4517.0,4516.9,0.0008]
[1758018561114,10.30081944,4517.0,4516.9,0.0008]
[1758018564212,10.3008457,4517.0,4516.9,0.0008]
[1758018566824,10.30089157,4517.0,4516.9,0.0008]
[1758018568016,10.30009157,4517.0,4516.9,0.0008]
[1758018569493,10.30012444,4517.0,4516.9,0.0008]
[1758018575601,11.23342444,4517.0,4516.9,0.0008]
[1758018579205,10.30038032,4517.0,4516.9,0.0008]
[1758018583286,10.30039748,4517.0,4516.9,0.0008]
[1758018585563,10.29939748,4517.0,4516.9,0.0008]
[1758018586487,10.00259748,4517.0,4516.9,0.0008]
[1758018586890,6.32159748,4517.0,4516.9,0.0008]
[1758018587091,6.32164705,4517.0,4516.9,0.0008]
[1758018587300,10.00264705,4517.0,4516.9,0.0008]
[1758018587594,6.32170197,4517.0,4516.9,0.0008]
[1758018587900,10.00270197,4517.0,4516.9,0.0008]
[1758018589379,4.10784322,4517.0,4516.9,0.2936]
[1758018589622,7.78884322,4517.0,4516.9,1.236]
[1758018591070,7.78881466,4517.0,4516.9,1.236]
[1758018593005,7.78701466,4517.0,4516.9,0.7912]
[1758018593567,10.00087341,4517.0,4516.9,0.7912]
[1758018594200,10.30157341,4517.0,4516.9,0.0008]
[1758018594993,10.73007341,4517.0,4516.9,0.0008]
[1758018595195,11.21067341,4517.0,4516.9,0.0008]
[1758018595393,11.50138828,4517.0,4516.9,0.0008]
[1758018596290,11.21067341,4517.0,4516.9,0.0008]
[1758018596501,10.73007341,4517.0,4516.9,0.0008]
[1758018597782,6.62157341,4517.0,4516.9,0.0008]
[1758018597988,9.82327633,4517.0,4516.9,0.0008]
[1758018598188,10.30157341,4517.0,4516.9,0.0008]
[1758018598390,7.78701466,4517.0,4516.9,0.4979]
[1758018598602,4.10701466,4517.0,4516.9,0.7999]
[1758018598805,9.52257633,4517.0,4516.9,0.7999]
[1758018599017,10.00087341,4517.0,4516.9,0.7999]
[1758018599625,10.00087341,4517.0,4516.9,0.4979]
[1758018599806,10.00087341,4517.0,4516.9,0.0008]
[1758018600316,4.10701466,4517.0,4516.9,0.0008]
[1758018600522,7.78701466,4517.0,4516.9,0.7999]
[1758018600730,10.00087341,4517.0,4516.9,0.7999]
[1758018601024,10.00087341,4517.0,4516.9,0.0008]
[1758018601210,10.29037341,4517.0,4516.9,0.0008]
[1758018602127,10.73877341,4517.0,4516.9,0.0008]
[1758018602295,10.29037341,4517.0,4516.9,0.0008]
[1758018602493,4.10701466,4517.0,4516.9,0.7999]
[1758018602725,7.78701466,4517.0,4516.9,0.7999]
[1758018603589,10.00087341,4517.0,4516.9,0.7999]
[1758018604690,10.00084282,4517.0,4516.9,0.7999]
[1758018605117,10.00084282,4517.0,4516.9,0.0008]
[1758018605793,11.21424282,4517.0,4516.9,0.0008]
[1758018606723,11.00639843,4517.0,4516.9,0.0008]
[1758018607038,11.21418621,4517.0,4516.9,0.0008]
[1758018608102,8.07639077,4517.0,4516.9,0.0008]
[1758018608314,7.78689077,4517.0,4516.9,0.0008]
[1758018608628,10.00074952,4517.0,4516.9,0.0008]
[1758018608992,7.78688926,4517.0,4516.9,0.0008]
[1758018609196,3.50392685,4517.0,4516.9,1.2327]
[1758018609527,3.50392685,4517.0,4516.9,1.57988563]
[1758018610232,3.29614058,4517.0,4516.9,1.57988563]
[1758018611032,3.29614058,4517.0,4516.9,3.79379339]
[1758018611546,3.29614058,4517.0,4516.9,1.57988563]
[1758018611711,3.29614058,4517.0,4516.9,1.2327]
[1758018612329,3.08835073,4517.0,4516.9,1.2327]
[1758018613537,3.08835073,4517.0,4516.9,0.7999]
[1758018613702,3.29601059,4517.0,4516.9,0.7999]
[1758018616501,3.08835073,4517.0,4516.9,3.01380776]
[1758018616696,3.08835073,4517.0,4516.9,1.2327]
[1758018616901,3.08835073,4517.0,4516.9,4.01518853]
[1758018617099,0.09075073,4517.0,4516.9,4.01518853]
[1758018617335,0.002,4517.0,4516.9,4.12558853]
[1758018618211,0.0012,4517.0,4516.9,4.12558853]
[1758018618411,0.0012,4517.0,4516.9,18.6477276]
[1758018618611,0.0012,4517.0,4516.9,18.62558853]
[1758018622775,0.0012,4517.0,4516.9,0.98178077]
[1758018623086,0.0012,4517.0,4516.9,6.78710776]
[1758018623435,0.0012,4517.0,4516.9,7.25220776]
[1758018623636,0.66660461,4517.0,4516.9,5.0383]
[1758018623957,0.66660461,4517.0,4516.9,4.5732]
[1758018624153,0.66660461,4517.0,4516.9,5.47362541]
[1758018624469,0.66660461,4517.0,4516.9,7.68753317]
[1758018624688,0.66660461,4517.0,4516.9,8.15263317]
[1758018624977,0.0012,4517.0,4516.9,8.94463317]
[1758018625337,0.0012,4517.0,4516.9,23.44463317]
[1758018625548,0.0012,4517.0,4516.9,28.5865417]
[1758018627967,0.0012,4517.0,4516.9,23.44463317]
[1758018629187,0.0012,4517.0,4516.9,22.18753317]
[1758018629569,0.0012,4517.0,4516.9,21.40353317]
[1758018629760,0.6666179,4517.0,4516.9,21.40353317]
[1758018629961,0.6666179,4517.0,4516.9,22.18623317]
[1758018630995,0.6666179,4517.0,4516.9,22.65133317]
[1758018632289,0.6666179,4517.0,4516.9,8.15133317]
[1758018632469,0.0012,4517.0,4516.9,8.15133317]
[1758018632860,0.0012,4517.0,4516.9,22.65133317]
[1758018639373,0.0012,4517.0,4516.9,22.18623317]
[1758018640967,0.0012,4517.0,4516.9,7.68623317]
[1758018641163,1.2274,4517.0,4516.9,4.68962541]
[1758018641405,1.2274,4517.0,4516.9,0.1112]
[1758018641701,1.2274,4517.0,4516.9,3.6788]
[1758018642060,1.89294042,4517.0,4516.9,3.6788]
[1758018643537,1.89214042,4517.0,4516.9,5.91484683]
[1758018643685,1.89214042,4517.0,4516.9,5.89270776]
[1758018644494,1.89214042,4517.0,4516.9,6.70368239]
[1758018644495,0.66594042,4517.0,4516.9,6.70368239]
[1758018644695,0.95354042,4517.0,4516.9,6.81408239]
[1758018645121,1.89214042,4517.0,4516.9,6.81408239]
[1758018646030,1.89214042,4517.0,4516.9,4.60017463]
[1758018646523,1.89214042,4517.0,4516.9,3.7892]
[1758018648394,1.89214042,4517.0,4516.9,6.00310776]
[1758018648715,0.66594042,4517.0,4516.9,6.00310776]
[1758018648915,0.66594042,4517.0,4516.9,6.48410776]
[1758018649339,0.66594042,4517.0,4516.9,6.00310776]
[1758018649829,0.95354042,4517.0,4516.9,6.00310776]
[1758018650702,0.95354042,4517.0,4516.9,3.7892]
[1758018650899,1.87204042,4517.0,4516.9,3.7892]
[1758018651338,1.87204042,4517.0,4516.9,6.00310776]
[1758018651537,1.39454042,4517.0,4516.9,6.00310776]
[1758018651701,1.39374042,4517.0,4516.9,6.00310776]
[1758018652721,0.95274042,4517.0,4516.9,6.00310776]
[1758018654220,0.95274042,4517.0,4516.9,3.7892]
[1758018654410,1.39374042,4517.0,4516.9,3.7892]
[1758018654742,1.87124042,4517.0,4516.9,3.7892]
[1758018655121,1.87124042,4517.0,4516.9,3.6788]
[1758018655318,2.07872457,4517.0,4516.9,3.6788]
[1758018655643,4.29258332,4517.0,4516.9,3.6788]
[1758018655850,4.29258332,4517.0,4516.9,0.0008]
[1758018655851,7.29258332,4517.0,4516.9,0.0008]
[1758018656062,8.10265443,4517.0,4516.9,0.0008]
[1758018656342,11.78065443,4517.0,4516.9,0.0008]
[1758018657427,11.78028031,4517.0,4516.9,0.0008]
[1758018658450,8.10217702,4517.0,4516.9,0.0008]
[1758018658764,11.78017702,4517.0,4516.9,0.0008]
[1758018659751,11.17775578,4517.0,4516.9,0.0008]
[1758018661143,10.97060128,4517.0,4516.9,0.0008]
[1758018661318,11.1776014,4517.0,4516.9,0.0008]
[1758018662522,11.1775362,4517.0,4516.9,0.0008]
[1758018664634,6.5810362,4517.0,4516.9,0.0008]
[1758018664826,11.1449362,4517.0,4516.9,0.0008]
[1758018667465,11.62163791,4517.0,4516.9,0.0008]
[1758018667664,17.6057843,4517.0,4516.9,0.0008]
[1758018667889,2.21395678,4516.8,4516.7,0.001]
[1758018668049,2.21395678,4516.8,4516.6,0.001]
[1758018668050,9.49615219,4516.7,4516.6,0.001]
[1758018668251,9.49615219,4516.7,4515.2,0.581]
[1758018668252,5.21410384,4516.5,4515.2,0.581]
[1758018668455,2.21415286,4516.4,4515.1,0.02]
[1758018668658,11.08064484,4516.4,4515.1,0.02]
[1758018668974,11.07984484,4516.4,4515.1,0.02]
[1758018669182,11.16861645,4516.4,4515.1,0.02]
[1758018669535,5.32460189,4516.3,4515.1,0.02]
[1758018669776,2.21425091,4516.2,4516.1,3e-08]
[1758018670071,10.95635359,4516.2,4516.1,3e-08]
[1758018670274,10.47980296,4516.2,4516.1,3e-08]
[1758018670464,10.60080296,4516.2,4516.1,3e-08]
[1758018671077,2.21434898,4516.0,4515.1,0.02]
[1758018671280,13.77903409,4515.2,4515.1,0.02]
[1758018671437,2.21488128,4515.0,4513.9,0.1104]
[1758018671640,3.0,4515.1,4513.9,0.1104]
[1758018671641,9.49737832,4514.2,4513.9,0.1104]
[1758018671856,13.46267832,4514.2,4513.7,0.4706]
[1758018672083,13.93327832,4514.2,4513.7,0.4706]
[1758018672251,14.81917832,4514.2,4513.1,0.4844]
[1758018672467,14.81917832,4514.2,4513.5,0.4706]
[1758018673042,14.81917832,4514.2,4513.1,0.01]
[1758018673247,13.93327832,4514.2,4513.8,0.4706]
[1758018674192,14.36587832,4514.2,4513.8,0.4706]
[1758018675291,14.81917832,4514.2,4513.5,0.4706]
[1758018675858,14.81917832,4514.2,4513.6,0.4706]
[1758018676075,11.71804639,4514.2,4513.3,2.69006572]
[1758018676275,11.71804639,4514.2,4513.3,2.21566572]
[1758018676481,13.93327832,4514.2,4513.8,0.4706]
[1758018678197,7.95876338,4514.2,4513.8,0.4706]
[1758018678492,11.63876338,4514.2,4513.8,0.4706]
[1758018678691,11.63876338,4514.2,4513.8,0.4714]
[1758018678894,13.85399531,4514.2,4513.8,0.4714]
[1758018679862,11.92506338,4514.2,4513.8,0.4714]
[1758018680077,14.14029531,4514.2,4513.8,0.4714]
[1758018681013,14.14029531,4514.2,4513.8,0.0008]
[1758018681213,15.09519531,4514.2,4513.8,0.0008]
[1758018682381,15.09515523,4514.2,4513.8,0.0008]
[1758018682923,14.14025523,4514.2,4513.8,0.0008]
[1758018683098,17.00411631,4514.2,4513.8,0.0008]
[1758018683298,17.47874934,4514.2,4513.8,0.0008]
[1758018685102,15.26351741,4514.2,4513.8,0.0008]
[1758018685314,14.02631741,4514.2,4513.8,0.0008]
[1758018685514,14.02631741,4514.2,4514.1,0.3113]
[1758018685515,9.86768438,4514.2,4514.1,0.3113]
[1758018685728,13.55168438,4514.2,4514.1,0.7768]
[1758018686414,13.55168438,4514.2,4514.1,0.01]
[1758018686991,13.55168438,4514.2,4514.1,0.4755]
[1758018687736,13.55168438,4514.2,4514.1,0.01]
[1758018688032,16.07621631,4514.2,4514.1,0.01]
[1758018688275,13.86098438,4514.2,4514.1,0.01]
[1758018688760,14.32558438,4514.2,4514.1,0.01]
[1758018689071,13.86098438,4514.2,4514.1,0.0108]
[1758018689370,13.55168438,4514.2,4514.1,0.7776]
[1758018689668,15.76691631,4514.2,4514.1,0.0108]
[1758018689973,13.55168438,4514.2,4514.1,0.0108]
[1758018690333,13.3457233,4514.2,4514.1,0.0108]
[1758018690669,15.87025523,4514.2,4514.1,0.0108]
[1758018690868,13.6550233,4514.2,4514.1,0.0108]
[1758018691270,13.55201296,4514.2,4514.1,0.0108]
[1758018692229,13.86131296,4514.2,4514.1,0.0108]
[1758018692543,16.55204363,4514.2,4514.1,0.0108]
[1758018692754,14.3368117,4514.2,4514.1,0.0108]
[1758018693368,14.3369702,4514.2,4514.1,0.0108]
[1758018693861,14.3361702,4514.2,4514.1,0.0108]
[1758018694749,14.8007702,4514.2,4514.1,0.0108]
[1758018694945,14.3361702,4514.2,4514.1,0.0108]
[1758018695151,14.0268702,4514.2,4514.1,0.3121]
[1758018695357,14.0268702,4514.2,4514.1,0.7776]
[1758018695857,9.74372381,4514.2,4514.1,0.7776]
[1758018696261,8.04072381,4514.2,4514.1,0.7776]
[1758018697360,8.04072381,4514.2,4514.1,1.2062]
[1758018697770,8.04072381,4514.2,4514.1,0.7776]
[1758018698143,4.35772381,4514.2,4514.1,0.4763]
[1758018698443,4.35772381,4514.2,4514.1,0.0108]
[1758018698854,4.66702381,4514.2,4514.1,0.0108]
[1758018699057,7.34685574,4514.2,4514.1,0.0108]
[1758018699251,7.4712291,4514.2,4514.1,0.0108]
[1758018699482,4.79139717,4514.2,4514.1,0.0108]
[1758018699841,4.79239645,4514.2,4514.1,0.0108]
[1758018700553,4.48309645,4514.2,4514.1,0.7776]
[1758018700749,4.48457957,4514.2,4514.1,0.7776]
[1758018700956,8.16757957,4514.2,4514.1,1.2062]
[1758018701132,4.48457957,4514.2,4514.1,1.2062]
[1758018701333,5.08194024,4514.2,4514.1,0.7776]
[1758018701940,5.39124024,4514.2,4514.1,0.0108]
[1758018702772,5.08194024,4514.2,4514.1,0.7776]
[1758018703072,5.08217323,4514.2,4514.1,0.7776]
[1758018703234,4.48481256,4514.2,4514.1,1.2062]
[1758018703637,4.48481035,4514.2,4514.1,1.2062]
[1758018704072,4.48481035,4514.2,4514.1,0.7776]
[1758018705739,3.88983699,4514.2,4514.1,1.2062]
[1758018706446,0.41497975,4514.2,4514.1,3.553141]
[1758018706647,0.20769081,4514.2,4514.1,3.553141]
[1758018707377,0.20769081,4514.2,4514.1,0.44376]
[1758018707684,0.20769081,4514.2,4514.1,0.0108]
[1758018707685,0.51692473,4514.2,4514.1,0.0108]
[1758018707865,0.31802473,4514.2,4514.1,0.0108]
[1758018708052,0.31801834,4514.2,4514.1,0.4763]
[1758018708372,0.1104,4514.2,4514.1,0.0108]
[1758018708770,0.1104,4514.2,4514.1,0.7776]
[1758018709177,0.1104,4514.2,4514.1,0.79975281]
[1758018709374,0.66598957,4514.4,4514.1,1.52986093]
[1758018709670,0.1104,4514.6,4514.2,3.10932956]
[1758018709873,0.1104,4514.6,4514.3,0.02215182]